[Event "Live Chess"]
[Site "Chess.com"]
[Date "2010.12.06"]
[Round "-"]
[White "hipposcottimus"]
[Black "furry_ferret"]
[Result "1-0"]
[CurrentPosition "2Q5/p5pk/2p4p/2p1P3/2P5/2P5/P5PP/6K1 b - -"]
[Timezone "UTC"]
[ECO "B20"]
[ECOUrl "https://www.chess.com/openings/Sicilian-Defense"]
[UTCDate "2010.12.06"]
[UTCTime "19:27:36"]
[WhiteElo "1573"]
[BlackElo "1597"]
[TimeControl "60"]
[Termination "hipposcottimus won by resignation"]
[StartTime "19:27:36"]
[EndDate "2010.12.06"]
[EndTime "19:28:58"]
[Link "https://www.chess.com/game/live/74683723"]

1. e4 {[%clk 0:01:00]} 1... c5 {[%clk 0:01:00]} 2. Bb5 {[%clk 0:00:58.2]} 2... Nc6 {[%clk 0:00:58.8]} 3. Bxc6 {[%clk 0:00:57.3]} 3... bxc6 {[%clk 0:00:58.8]} 4. Nf3 {[%clk 0:00:57]} 4... Bb7 {[%clk 0:00:58.3]} 5. c4 {[%clk 0:00:56.7]} 5... e6 {[%clk 0:00:57.8]} 6. d3 {[%clk 0:00:56.1]} 6... Bd6 {[%clk 0:00:57.4]} 7. Nc3 {[%clk 0:00:55.8]} 7... Nf6 {[%clk 0:00:57]} 8. e5 {[%clk 0:00:55.5]} 8... Bxe5 {[%clk 0:00:56.2]} 9. Nxe5 {[%clk 0:00:53.9]} 9... d6 {[%clk 0:00:56.2]} 10. Nxf7 {[%clk 0:00:48.5]} 10... Kxf7 {[%clk 0:00:55.3]} 11. O-O {[%clk 0:00:48.3]} 11... Rf8 {[%clk 0:00:54.8]} 12. Bg5 {[%clk 0:00:46.8]} 12... Kg8 {[%clk 0:00:54]} 13. Qf3 {[%clk 0:00:43.1]} 13... h6 {[%clk 0:00:52.4]} 14. Bh4 {[%clk 0:00:40.8]} 14... Nd5 {[%clk 0:00:44.4]} 15. Qg3 {[%clk 0:00:40.2]} 15... Nxc3 {[%clk 0:00:41.8]} 16. Bxd8 {[%clk 0:00:38.3]} 16... Raxd8 {[%clk 0:00:39.1]} 17. bxc3 {[%clk 0:00:37.8]} 17... d5 {[%clk 0:00:38.1]} 18. f4 {[%clk 0:00:36.3]} 18... dxc4 {[%clk 0:00:36.8]} 19. dxc4 {[%clk 0:00:35.9]} 19... Bc8 {[%clk 0:00:35.2]} 20. Rf2 {[%clk 0:00:33.3]} 20... e5 {[%clk 0:00:34.4]} 21. Raf1 {[%clk 0:00:32.4]} 21... Rf6 {[%clk 0:00:29.5]} 22. fxe5 {[%clk 0:00:30.8]} 22... Rxf2 {[%clk 0:00:28.6]} 23. Rxf2 {[%clk 0:00:30.4]} 23... Rf8 {[%clk 0:00:27.7]} 24. Rxf8+ {[%clk 0:00:29.4]} 24... Kxf8 {[%clk 0:00:27.7]} 25. Qh4 {[%clk 0:00:28.1]} 25... Kg8 {[%clk 0:00:26.5]} 26. Qd8+ {[%clk 0:00:26.9]} 26... Kh7 {[%clk 0:00:24.7]} 27. Qxc8 {[%clk 0:00:26.6]} 1-0

[Event "Live Chess"]
[Site "Chess.com"]
[Date "2010.12.06"]
[Round "-"]
[White "hipposcottimus"]
[Black "y_a"]
[Result "1-0"]
[CurrentPosition "7k/p5Q1/1p3Ppp/8/8/8/BP3KPP/8 b - -"]
[Timezone "UTC"]
[ECO "B06"]
[ECOUrl "https://www.chess.com/openings/Modern-Defense-with-1-e4"]
[UTCDate "2010.12.06"]
[UTCTime "19:23:35"]
[WhiteElo "1562"]
[BlackElo "1505"]
[TimeControl "60"]
[Termination "hipposcottimus won by checkmate"]
[StartTime "19:23:35"]
[EndDate "2010.12.06"]
[EndTime "19:25:41"]
[Link "https://www.chess.com/game/live/74682529"]

1. e4 {[%clk 0:01:00]} 1... g6 {[%clk 0:01:00]} 2. e5 {[%clk 0:00:58.5]} 2... Bg7 {[%clk 0:00:59.2]} 3. d4 {[%clk 0:00:58.3]} 3... e6 {[%clk 0:00:58.3]} 4. f4 {[%clk 0:00:58]} 4... Ne7 {[%clk 0:00:57.9]} 5. Nf3 {[%clk 0:00:57.6]} 5... O-O {[%clk 0:00:57.4]} 6. Bc4 {[%clk 0:00:57.2]} 6... d6 {[%clk 0:00:56.6]} 7. Bb3 {[%clk 0:00:56.7]} 7... dxe5 {[%clk 0:00:55.7]} 8. fxe5 {[%clk 0:00:55.2]} 8... Nbc6 {[%clk 0:00:54.8]} 9. c3 {[%clk 0:00:54.5]} 9... Nf5 {[%clk 0:00:53.5]} 10. O-O {[%clk 0:00:53.8]} 10... b6 {[%clk 0:00:51.3]} 11. Bg5 {[%clk 0:00:53.4]} 11... Qd7 {[%clk 0:00:49.3]} 12. Bf6 {[%clk 0:00:50.6]} 12... Bxf6 {[%clk 0:00:46.7]} 13. exf6 {[%clk 0:00:49.9]} 13... Ba6 {[%clk 0:00:46.3]} 14. Re1 {[%clk 0:00:48.6]} 14... Bb5 {[%clk 0:00:40.5]} 15. Ne5 {[%clk 0:00:47.5]} 15... Qe8 {[%clk 0:00:37.7]} 16. c4 {[%clk 0:00:43.6]} 16... Nxe5 {[%clk 0:00:35.2]} 17. Rxe5 {[%clk 0:00:36.1]} 17... Bc6 {[%clk 0:00:33.8]} 18. d5 {[%clk 0:00:34.7]} 18... exd5 {[%clk 0:00:31.8]} 19. Rxe8 {[%clk 0:00:33.2]} 19... Raxe8 {[%clk 0:00:29.5]} 20. cxd5 {[%clk 0:00:31.9]} 20... Ba8 {[%clk 0:00:28]} 21. Nc3 {[%clk 0:00:31]} 21... Ne3 {[%clk 0:00:26.6]} 22. Qf3 {[%clk 0:00:25.7]} 22... Bxd5 {[%clk 0:00:23]} 23. Nxd5 {[%clk 0:00:22.9]} 23... Nxd5 {[%clk 0:00:22]} 24. Bxd5 {[%clk 0:00:22.1]} 24... c6 {[%clk 0:00:19.4]} 25. Bxc6 {[%clk 0:00:19.9]} 25... Rc8 {[%clk 0:00:18.5]} 26. Rf1 {[%clk 0:00:19.6]} 26... Rc7 {[%clk 0:00:15.6]} 27. Be4 {[%clk 0:00:18.1]} 27... Rfc8 {[%clk 0:00:13.1]} 28. Bd3 {[%clk 0:00:17]} 28... Rc1 {[%clk 0:00:11.3]} 29. Rxc1 {[%clk 0:00:14.8]} 29... Rxc1+ {[%clk 0:00:10.2]} 30. Kf2 {[%clk 0:00:14.4]} 30... Ra1 {[%clk 0:00:07.5]} 31. Bc4 {[%clk 0:00:12.2]} 31... Rxa2 {[%clk 0:00:05.8]} 32. Bxa2 {[%clk 0:00:10.5]} 32... h6 {[%clk 0:00:04.5]} 33. Qd5 {[%clk 0:00:10]} 33... Kh7 {[%clk 0:00:03.6]} 34. Qxf7+ {[%clk 0:00:09.6]} 34... Kh8 {[%clk 0:00:02.3]} 35. Qg7# {[%clk 0:00:09.3]} 1-0

[Event "Live Chess"]
[Site "Chess.com"]
[Date "2010.12.06"]
[Round "-"]
[White "AMerePawn"]
[Black "hipposcottimus"]
[Result "0-1"]
[CurrentPosition "4r2k/pp3rpp/8/3p4/2Pn2K1/3P2P1/5P2/8 w - -"]
[Timezone "UTC"]
[ECO "C20"]
[ECOUrl "https://www.chess.com/openings/Kings-Pawn-Opening-Leonardis-Variation"]
[UTCDate "2010.12.06"]
[UTCTime "19:20:58"]
[WhiteElo "1367"]
[BlackElo "1555"]
[TimeControl "60"]
[Termination "hipposcottimus won on time"]
[StartTime "19:20:58"]
[EndDate "2010.12.06"]
[EndTime "19:22:51"]
[Link "https://www.chess.com/game/live/74681845"]

1. e4 {[%clk 0:01:00]} 1... e5 {[%clk 0:01:00]} 2. d3 {[%clk 0:00:59.5]} 2... Nc6 {[%clk 0:00:59.7]} 3. b3 {[%clk 0:00:58.7]} 3... Nf6 {[%clk 0:00:59.4]} 4. Bb2 {[%clk 0:00:58.2]} 4... d5 {[%clk 0:00:59.1]} 5. exd5 {[%clk 0:00:56]} 5... Nxd5 {[%clk 0:00:58.6]} 6. c4 {[%clk 0:00:54.5]} 6... Bb4+ {[%clk 0:00:57.4]} 7. Nc3 {[%clk 0:00:50.9]} 7... Nxc3 {[%clk 0:00:56.5]} 8. Qd2 {[%clk 0:00:44.5]} 8... Qd4 {[%clk 0:00:49.7]} 9. Bxc3 {[%clk 0:00:43.1]} 9... Bxc3 {[%clk 0:00:48.3]} 10. Qxc3 {[%clk 0:00:37]} 10... Qxc3+ {[%clk 0:00:47.5]} 11. Ke2 {[%clk 0:00:36.6]} 11... Qxa1 {[%clk 0:00:47.2]} 12. Nf3 {[%clk 0:00:34.9]} 12... Qxa2+ {[%clk 0:00:46.9]} 13. Nd2 {[%clk 0:00:33.1]} 13... Qxb3 {[%clk 0:00:46.5]} 14. g3 {[%clk 0:00:32.3]} 14... Bg4+ {[%clk 0:00:45.9]} 15. Ke3 {[%clk 0:00:30.2]} 15... Qd1 {[%clk 0:00:40.5]} 16. h3 {[%clk 0:00:26.7]} 16... O-O {[%clk 0:00:33.8]} 17. hxg4 {[%clk 0:00:24.7]} 17... Nd4 {[%clk 0:00:33.5]} 18. Bg2 {[%clk 0:00:21.7]} 18... Nc2+ {[%clk 0:00:32.8]} 19. Ke4 {[%clk 0:00:18.8]} 19... Qxh1 {[%clk 0:00:32.2]} 20. Bxh1 {[%clk 0:00:16.3]} 20... f5+ {[%clk 0:00:31.9]} 21. Kxe5 {[%clk 0:00:14.5]} 21... Rae8+ {[%clk 0:00:31.3]} 22. Kf4 {[%clk 0:00:13.3]} 22... fxg4+ {[%clk 0:00:31]} 23. Kxg4 {[%clk 0:00:09.4]} 23... Nd4 {[%clk 0:00:30.7]} 24. Bd5+ {[%clk 0:00:08.4]} 24... Kh8 {[%clk 0:00:29.2]} 25. Ne4 {[%clk 0:00:07.4]} 25... c6 {[%clk 0:00:27.9]} 26. Ng5 {[%clk 0:00:03.7]} 26... cxd5 {[%clk 0:00:19.1]} 27. Nf7+ {[%clk 0:00:02.9]} 27... Rxf7 {[%clk 0:00:18.3]} 0-1

[Event "Live Chess"]
[Site "Chess.com"]
[Date "2010.12.06"]
[Round "-"]
[White "konstantijn"]
[Black "hipposcottimus"]
[Result "0-1"]
[CurrentPosition "r7/ppp2kpp/8/3p4/3b4/1N3PPb/2P1K3/1RB2q2 w - -"]
[Timezone "UTC"]
[ECO "C47"]
[ECOUrl "https://www.chess.com/openings/Four-Knights-Game-Scotch-Variation-4...Bb4"]
[UTCDate "2010.12.06"]
[UTCTime "19:17:40"]
[WhiteElo "1502"]
[BlackElo "1551"]
[TimeControl "60"]
[Termination "hipposcottimus won on time"]
[StartTime "19:17:40"]
[EndDate "2010.12.06"]
[EndTime "19:19:24"]
[Link "https://www.chess.com/game/live/74680894"]

1. e4 {[%clk 0:01:00]} 1... e5 {[%clk 0:01:00]} 2. Nf3 {[%clk 0:00:59.7]} 2... Nc6 {[%clk 0:00:59.6]} 3. Nc3 {[%clk 0:00:59.3]} 3... Nf6 {[%clk 0:00:59.3]} 4. d4 {[%clk 0:00:58.8]} 4... Bb4 {[%clk 0:00:58.6]} 5. Qd2 {[%clk 0:00:55.2]} 5... d6 {[%clk 0:00:55.6]} 6. a3 {[%clk 0:00:54]} 6... Ba5 {[%clk 0:00:54]} 7. b4 {[%clk 0:00:52.8]} 7... Nxb4 {[%clk 0:00:53.6]} 8. axb4 {[%clk 0:00:51.3]} 8... Bxb4 {[%clk 0:00:53.3]} 9. dxe5 {[%clk 0:00:47.2]} 9... Nxe4 {[%clk 0:00:50.4]} 10. Qe2 {[%clk 0:00:42.7]} 10... Bxc3+ {[%clk 0:00:47.8]} 11. Nd2 {[%clk 0:00:39.2]} 11... d5 {[%clk 0:00:40]} 12. Rb1 {[%clk 0:00:33.5]} 12... O-O {[%clk 0:00:38.8]} 13. f3 {[%clk 0:00:32.3]} 13... Qh4+ {[%clk 0:00:31.3]} 14. g3 {[%clk 0:00:30.7]} 14... Nxg3 {[%clk 0:00:30.1]} 15. hxg3 {[%clk 0:00:29.6]} 15... Qxh1 {[%clk 0:00:29.2]} 16. Kf2 {[%clk 0:00:27.5]} 16... Bd4+ {[%clk 0:00:26.4]} 17. Ke1 {[%clk 0:00:24.8]} 17... Bh3 {[%clk 0:00:23.8]} 18. e6 {[%clk 0:00:16]} 18... Rfe8 {[%clk 0:00:22.9]} 19. exf7+ {[%clk 0:00:14.4]} 19... Kxf7 {[%clk 0:00:22.5]} 20. Nb3 {[%clk 0:00:09.5]} 20... Rxe2+ {[%clk 0:00:20.2]} 21. Kxe2 {[%clk 0:00:07.4]} 21... Qxf1+ {[%clk 0:00:19.9]} 0-1

[Event "Live Chess"]
[Site "Chess.com"]
[Date "2010.12.06"]
[Round "-"]
[White "chess_Kungfu"]
[Black "hipposcottimus"]
[Result "1-0"]
[CurrentPosition "5r1k/p4R2/8/5p2/5P2/P3P1Pq/1P5P/5RK1 b - -"]
[Timezone "UTC"]
[ECO "D00"]
[ECOUrl "https://www.chess.com/openings/Queens-Pawn-Opening-1...d5-2.e3"]
[UTCDate "2010.12.06"]
[UTCTime "19:14:22"]
[WhiteElo "1789"]
[BlackElo "1544"]
[TimeControl "60"]
[Termination "chess_Kungfu won on time"]
[StartTime "19:14:22"]
[EndDate "2010.12.06"]
[EndTime "19:16:35"]
[Link "https://www.chess.com/game/live/74679956"]

1. d4 {[%clk 0:01:00]} 1... d5 {[%clk 0:01:00]} 2. e3 {[%clk 0:01:00]} 2... c6 {[%clk 0:00:59.7]} 3. Nf3 {[%clk 0:00:58.5]} 3... Nd7 {[%clk 0:00:59.4]} 4. c4 {[%clk 0:00:58.3]} 4... e6 {[%clk 0:00:58.4]} 5. Nc3 {[%clk 0:00:58.3]} 5... Ngf6 {[%clk 0:00:56.4]} 6. cxd5 {[%clk 0:00:58.3]} 6... cxd5 {[%clk 0:00:55.1]} 7. a3 {[%clk 0:00:58.3]} 7... Be7 {[%clk 0:00:53.2]} 8. Bd3 {[%clk 0:00:58.3]} 8... O-O {[%clk 0:00:52.9]} 9. O-O {[%clk 0:00:58]} 9... e5 {[%clk 0:00:52.6]} 10. dxe5 {[%clk 0:00:56.4]} 10... Ng4 {[%clk 0:00:52.4]} 11. Qc2 {[%clk 0:00:53]} 11... Ngxe5 {[%clk 0:00:52]} 12. Nxe5 {[%clk 0:00:52.3]} 12... Nxe5 {[%clk 0:00:49.6]} 13. Bxh7+ {[%clk 0:00:52.3]} 13... Kh8 {[%clk 0:00:49.3]} 14. Bd3 {[%clk 0:00:51.6]} 14... Kg8 {[%clk 0:00:48.5]} 15. Be2 {[%clk 0:00:50.2]} 15... Ng6 {[%clk 0:00:46.5]} 16. f4 {[%clk 0:00:48.6]} 16... f5 {[%clk 0:00:36.8]} 17. Bh5 {[%clk 0:00:44.7]} 17... Qe8 {[%clk 0:00:34.9]} 18. Bg4 {[%clk 0:00:44.7]} 18... Qf7 {[%clk 0:00:33.9]} 19. Bf3 {[%clk 0:00:43.2]} 19... Nh4 {[%clk 0:00:30.8]} 20. Bxd5 {[%clk 0:00:41.6]} 20... Be6 {[%clk 0:00:26.9]} 21. Bxb7 {[%clk 0:00:40.5]} 21... Qg6 {[%clk 0:00:23.5]} 22. g3 {[%clk 0:00:36.8]} 22... Rab8 {[%clk 0:00:23.2]} 23. Bc6 {[%clk 0:00:31.3]} 23... Rbc8 {[%clk 0:00:20.6]} 24. Ba4 {[%clk 0:00:29.7]} 24... Rc7 {[%clk 0:00:20.1]} 25. Bb3 {[%clk 0:00:28.5]} 25... Bxb3 {[%clk 0:00:11.6]} 26. Qxb3+ {[%clk 0:00:27.3]} 26... Kh8 {[%clk 0:00:11.4]} 27. Nd5 {[%clk 0:00:26.7]} 27... Rd7 {[%clk 0:00:09.2]} 28. Nxe7 {[%clk 0:00:25.9]} 28... Rxe7 {[%clk 0:00:08.8]} 29. Bd2 {[%clk 0:00:24.9]} 29... Ref7 {[%clk 0:00:08.5]} 30. Bc3 {[%clk 0:00:23.4]} 30... Qg4 {[%clk 0:00:06.7]} 31. Rad1 {[%clk 0:00:20.1]} 31... Nf3+ {[%clk 0:00:05.7]} 32. Kg2 {[%clk 0:00:16.4]} 32... Nh4+ {[%clk 0:00:03.6]} 33. Kg1 {[%clk 0:00:15.5]} 33... Ng6 {[%clk 0:00:03.3]} 34. Qb5 {[%clk 0:00:11.7]} 34... Ne7 {[%clk 0:00:03]} 35. Qb4 {[%clk 0:00:10.2]} 35... Qh3 {[%clk 0:00:02.5]} 36. Qxe7 {[%clk 0:00:08.2]} 36... Rxe7 {[%clk 0:00:01.5]} 37. Bxg7+ {[%clk 0:00:07.7]} 37... Rxg7 {[%clk 0:00:00.6]} 38. Rd7 {[%clk 0:00:07.3]} 38... Rgf7 {[%clk 0:00:00.3]} 39. Rxf7 {[%clk 0:00:06.3]} 1-0

[Event "Live Chess"]
[Site "Chess.com"]
[Date "2010.12.06"]
[Round "-"]
[White "hipposcottimus"]
[Black "sham1308"]
[Result "1-0"]
[CurrentPosition "2bQ2kr/5ppp/4p3/4P3/8/8/5KPP/4R3 b - -"]
[Timezone "UTC"]
[ECO "B12"]
[ECOUrl "https://www.chess.com/openings/Caro-Kann-Defense-2.d4"]
[UTCDate "2010.12.06"]
[UTCTime "19:10:54"]
[WhiteElo "1544"]
[BlackElo "1440"]
[TimeControl "60"]
[Termination "hipposcottimus won by checkmate"]
[StartTime "19:10:54"]
[EndDate "2010.12.06"]
[EndTime "19:12:56"]
[Link "https://www.chess.com/game/live/74679026"]

1. e4 {[%clk 0:01:00]} 1... c6 {[%clk 0:01:00]} 2. d4 {[%clk 0:00:58.3]} 2... b5 {[%clk 0:00:58.6]} 3. c4 {[%clk 0:00:55.5]} 3... b4 {[%clk 0:00:57.4]} 4. a3 {[%clk 0:00:53.6]} 4... a5 {[%clk 0:00:56.4]} 5. axb4 {[%clk 0:00:52.2]} 5... a4 {[%clk 0:00:55.7]} 6. b3 {[%clk 0:00:50.9]} 6... a3 {[%clk 0:00:54.1]} 7. Nxa3 {[%clk 0:00:48.6]} 7... Rxa3 {[%clk 0:00:52.2]} 8. Bb2 {[%clk 0:00:48.3]} 8... Rxa1 {[%clk 0:00:50.5]} 9. Qxa1 {[%clk 0:00:48.1]} 9... e6 {[%clk 0:00:49.1]} 10. c5 {[%clk 0:00:45.5]} 10... d6 {[%clk 0:00:47.6]} 11. b5 {[%clk 0:00:44.1]} 11... dxc5 {[%clk 0:00:46]} 12. dxc5 {[%clk 0:00:41.6]} 12... Bxc5 {[%clk 0:00:45]} 13. Nf3 {[%clk 0:00:38.8]} 13... cxb5 {[%clk 0:00:44]} 14. Bxb5+ {[%clk 0:00:37.2]} 14... Ke7 {[%clk 0:00:42.1]} 15. Bc4 {[%clk 0:00:36.9]} 15... Bb4+ {[%clk 0:00:40.5]} 16. Bc3 {[%clk 0:00:35.2]} 16... Bxc3+ {[%clk 0:00:38.3]} 17. Qxc3 {[%clk 0:00:34.9]} 17... Qc7 {[%clk 0:00:37.3]} 18. O-O {[%clk 0:00:33.1]} 18... Nc6 {[%clk 0:00:35.7]} 19. b4 {[%clk 0:00:29.9]} 19... Nf6 {[%clk 0:00:33.9]} 20. e5 {[%clk 0:00:26]} 20... Ne4 {[%clk 0:00:30.3]} 21. Qa3 {[%clk 0:00:25.2]} 21... Nd4 {[%clk 0:00:27.4]} 22. b5+ {[%clk 0:00:23.7]} 22... Nd6 {[%clk 0:00:22.8]} 23. Nxd4 {[%clk 0:00:23]} 23... Qxc4 {[%clk 0:00:18.1]} 24. Nc6+ {[%clk 0:00:22.5]} 24... Kf8 {[%clk 0:00:15.2]} 25. Rc1 {[%clk 0:00:20.4]} 25... Qxb5 {[%clk 0:00:11.4]} 26. Nd4 {[%clk 0:00:16.1]} 26... Qd5 {[%clk 0:00:09]} 27. Qe3 {[%clk 0:00:14.7]} 27... Ne4 {[%clk 0:00:07.1]} 28. Re1 {[%clk 0:00:13.4]} 28... Qxd4 {[%clk 0:00:06.1]} 29. Qxd4 {[%clk 0:00:11.8]} 29... Nxf2 {[%clk 0:00:05.3]} 30. Kxf2 {[%clk 0:00:10.4]} 30... Kg8 {[%clk 0:00:04.5]} 31. Qd8# {[%clk 0:00:09.1]} 1-0

[Event "Live Chess"]
[Site "Chess.com"]
[Date "2010.12.06"]
[Round "-"]
[White "sham1308"]
[Black "hipposcottimus"]
[Result "1-0"]
[CurrentPosition "rnbqrk2/p4Qpp/2pb1n2/1B2p1N1/4p3/2P2P2/PP1P2PP/RNB1K2R b KQ -"]
[Timezone "UTC"]
[ECO "C20"]
[ECOUrl "https://www.chess.com/openings/Kings-Pawn-Opening-MacLeod-Attack"]
[UTCDate "2010.12.06"]
[UTCTime "19:09:48"]
[WhiteElo "1446"]
[BlackElo "1538"]
[TimeControl "60"]
[Termination "sham1308 won by checkmate"]
[StartTime "19:09:48"]
[EndDate "2010.12.06"]
[EndTime "19:10:39"]
[Link "https://www.chess.com/game/live/74678738"]

1. e4 {[%clk 0:01:00]} 1... e5 {[%clk 0:01:00]} 2. c3 {[%clk 0:00:59.4]} 2... Nf6 {[%clk 0:00:59.4]} 3. Qb3 {[%clk 0:00:58.6]} 3... d5 {[%clk 0:00:59]} 4. f3 {[%clk 0:00:58.1]} 4... dxe4 {[%clk 0:00:57.6]} 5. Bc4 {[%clk 0:00:56.7]} 5... Bd6 {[%clk 0:00:47.4]} 6. Bxf7+ {[%clk 0:00:53.4]} 6... Ke7 {[%clk 0:00:47.1]} 7. Bc4 {[%clk 0:00:49.9]} 7... Re8 {[%clk 0:00:46.5]} 8. Nh3 {[%clk 0:00:45.9]} 8... Kf8 {[%clk 0:00:46]} 9. Ng5 {[%clk 0:00:44.6]} 9... b5 {[%clk 0:00:35.5]} 10. Bxb5 {[%clk 0:00:43.5]} 10... c6 {[%clk 0:00:33.5]} 11. Qf7# {[%clk 0:00:41.1]} 1-0

[Event "Live Chess"]
[Site "Chess.com"]
[Date "2010.12.06"]
[Round "-"]
[White "hipposcottimus"]
[Black "sham1308"]
[Result "1-0"]
[CurrentPosition "8/pp6/1kp5/3p3R/6K1/5n2/P7/8 b - -"]
[Timezone "UTC"]
[ECO "B00"]
[ECOUrl "https://www.chess.com/openings/Kings-Pawn-Opening-Goldsmith-Defense"]
[UTCDate "2010.12.06"]
[UTCTime "19:07:08"]
[WhiteElo "1547"]
[BlackElo "1435"]
[TimeControl "60"]
[Termination "hipposcottimus won on time"]
[StartTime "19:07:08"]
[EndDate "2010.12.06"]
[EndTime "19:09:28"]
[Link "https://www.chess.com/game/live/74677966"]

1. e4 {[%clk 0:01:00]} 1... h5 {[%clk 0:01:00]} 2. Be2 {[%clk 0:00:56.8]} 2... d6 {[%clk 0:00:59.4]} 3. Bxh5 {[%clk 0:00:55.4]} 3... g6 {[%clk 0:00:58.8]} 4. Bg4 {[%clk 0:00:53.4]} 4... e6 {[%clk 0:00:57.3]} 5. d4 {[%clk 0:00:50.7]} 5... c6 {[%clk 0:00:56]} 6. Qf3 {[%clk 0:00:49.6]} 6... f6 {[%clk 0:00:54.2]} 7. Nh3 {[%clk 0:00:48.6]} 7... g5 {[%clk 0:00:52.5]} 8. e5 {[%clk 0:00:46.5]} 8... f5 {[%clk 0:00:51.2]} 9. Bh5+ {[%clk 0:00:46.1]} 9... Kd7 {[%clk 0:00:50.3]} 10. Bxg5 {[%clk 0:00:43.6]} 10... Be7 {[%clk 0:00:47.3]} 11. Bf6 {[%clk 0:00:39.2]} 11... Nxf6 {[%clk 0:00:45.3]} 12. exf6 {[%clk 0:00:38.3]} 12... Bxf6 {[%clk 0:00:44.2]} 13. Nf4 {[%clk 0:00:37.6]} 13... d5 {[%clk 0:00:39.9]} 14. Qe3 {[%clk 0:00:35.1]} 14... Kc7 {[%clk 0:00:36.4]} 15. Nxe6+ {[%clk 0:00:31.5]} 15... Bxe6 {[%clk 0:00:34.8]} 16. Qxe6 {[%clk 0:00:30.8]} 16... Qd7 {[%clk 0:00:34.2]} 17. Bf7 {[%clk 0:00:27.8]} 17... Qxe6+ {[%clk 0:00:31.2]} 18. Bxe6 {[%clk 0:00:27.4]} 18... Re8 {[%clk 0:00:30.1]} 19. O-O {[%clk 0:00:24.4]} 19... Bxd4 {[%clk 0:00:29]} 20. Bxf5 {[%clk 0:00:22.2]} 20... Bxb2 {[%clk 0:00:27.1]} 21. c3 {[%clk 0:00:20.6]} 21... Bxa1 {[%clk 0:00:26]} 22. Bg6 {[%clk 0:00:19.9]} 22... Re6 {[%clk 0:00:23.8]} 23. f4 {[%clk 0:00:18.9]} 23... Bxc3 {[%clk 0:00:22.3]} 24. Nxc3 {[%clk 0:00:15.9]} 24... Rxg6 {[%clk 0:00:21.4]} 25. f5 {[%clk 0:00:14.9]} 25... Rg5 {[%clk 0:00:19.7]} 26. f6 {[%clk 0:00:14.5]} 26... Nd7 {[%clk 0:00:18.9]} 27. f7 {[%clk 0:00:14.1]} 27... Rf8 {[%clk 0:00:17.9]} 28. Ne2 {[%clk 0:00:13.5]} 28... Ne5 {[%clk 0:00:15.6]} 29. Ng3 {[%clk 0:00:13]} 29... Nxf7 {[%clk 0:00:13.8]} 30. h4 {[%clk 0:00:12.7]} 30... Rxg3 {[%clk 0:00:12]} 31. Kh2 {[%clk 0:00:09.5]} 31... Rg7 {[%clk 0:00:09.8]} 32. g3 {[%clk 0:00:09.1]} 32... Rh7 {[%clk 0:00:08.8]} 33. Kh3 {[%clk 0:00:08.8]} 33... Rfh8 {[%clk 0:00:07.6]} 34. Rf4 {[%clk 0:00:07.6]} 34... Nd6 {[%clk 0:00:06.7]} 35. Rf6 {[%clk 0:00:06.4]} 35... Rxh4+ {[%clk 0:00:05.7]} 36. gxh4 {[%clk 0:00:05.5]} 36... Rxh4+ {[%clk 0:00:04.7]} 37. Kxh4 {[%clk 0:00:04.9]} 37... Nc4 {[%clk 0:00:03.9]} 38. Rh6 {[%clk 0:00:04.5]} 38... Kb6 {[%clk 0:00:03]} 39. Rh7 {[%clk 0:00:03.9]} 39... Ne5 {[%clk 0:00:01.8]} 40. Rh5 {[%clk 0:00:03.5]} 40... Nf3+ {[%clk 0:00:00.4]} 41. Kg4 {[%clk 0:00:00.3]} 1-0

[Event "Live Chess"]
[Site "Chess.com"]
[Date "2010.12.06"]
[Round "-"]
[White "sham1308"]
[Black "hipposcottimus"]
[Result "0-1"]
[CurrentPosition "3rr1k1/6B1/6p1/8/8/3q4/PP5P/n2K4 w - -"]
[Timezone "UTC"]
[ECO "C24"]
[ECOUrl "https://www.chess.com/openings/Bishops-Opening-Berlin-Defense"]
[UTCDate "2010.12.06"]
[UTCTime "19:04:31"]
[WhiteElo "1441"]
[BlackElo "1541"]
[TimeControl "60"]
[Termination "hipposcottimus won on time"]
[StartTime "19:04:31"]
[EndDate "2010.12.06"]
[EndTime "19:06:38"]
[Link "https://www.chess.com/game/live/74677266"]

1. e4 {[%clk 0:01:00]} 1... e5 {[%clk 0:01:00]} 2. Bc4 {[%clk 0:00:58.3]} 2... Nf6 {[%clk 0:00:58.3]} 3. Qf3 {[%clk 0:00:57.3]} 3... Nc6 {[%clk 0:00:58]} 4. Qb3 {[%clk 0:00:56.4]} 4... d5 {[%clk 0:00:56.6]} 5. exd5 {[%clk 0:00:55]} 5... Nd4 {[%clk 0:00:56.1]} 6. Bb5+ {[%clk 0:00:52.1]} 6... Bd7 {[%clk 0:00:55.7]} 7. Bxd7+ {[%clk 0:00:50.2]} 7... Qxd7 {[%clk 0:00:55.2]} 8. Qxb7 {[%clk 0:00:48.7]} 8... Rd8 {[%clk 0:00:48]} 9. Qxa7 {[%clk 0:00:47.5]} 9... Nxd5 {[%clk 0:00:47.2]} 10. f4 {[%clk 0:00:44.5]} 10... Nxc2+ {[%clk 0:00:46.3]} 11. Kd1 {[%clk 0:00:42.8]} 11... Nxa1 {[%clk 0:00:45.5]} 12. Ne2 {[%clk 0:00:39.5]} 12... Nxf4 {[%clk 0:00:43.4]} 13. Qe3 {[%clk 0:00:37.6]} 13... Nxg2 {[%clk 0:00:41.5]} 14. Qxe5+ {[%clk 0:00:35.2]} 14... Be7 {[%clk 0:00:38.4]} 15. Nf4 {[%clk 0:00:32.8]} 15... Nxf4 {[%clk 0:00:26.4]} 16. Qxf4 {[%clk 0:00:31.4]} 16... Bf6 {[%clk 0:00:25.6]} 17. Re1+ {[%clk 0:00:29.9]} 17... Be7 {[%clk 0:00:24.5]} 18. Nc3 {[%clk 0:00:26.6]} 18... O-O {[%clk 0:00:23.5]} 19. d4 {[%clk 0:00:24.1]} 19... Bc5 {[%clk 0:00:21.3]} 20. d5 {[%clk 0:00:22]} 20... c6 {[%clk 0:00:18.6]} 21. Qg3 {[%clk 0:00:19.4]} 21... cxd5 {[%clk 0:00:17.9]} 22. Bh6 {[%clk 0:00:17.4]} 22... g6 {[%clk 0:00:15.2]} 23. Rg1 {[%clk 0:00:13.7]} 23... d4 {[%clk 0:00:13.3]} 24. Ne4 {[%clk 0:00:10.8]} 24... d3 {[%clk 0:00:12.2]} 25. Nxc5 {[%clk 0:00:09.1]} 25... Qd5 {[%clk 0:00:11]} 26. Nxd3 {[%clk 0:00:05.5]} 26... Rfe8 {[%clk 0:00:10]} 27. Qxg6+ {[%clk 0:00:03.2]} 27... fxg6 {[%clk 0:00:08]} 28. Rxg6+ {[%clk 0:00:02.3]} 28... hxg6 {[%clk 0:00:07.3]} 29. Bg7 {[%clk 0:00:01.2]} 29... Qxd3+ {[%clk 0:00:06.9]} 0-1